Cogmind - Beta 13 @@@ ROGUE MODE // 2024.03.23 @ 20:45:59 Player: Gokudera ElPsyCongroo Result: Destroyed self with Mini Grenade Launcher Performance ------------- Evolutions (4) 2000 Regions Visited (10) 2000 Robots Destroyed (159) 795 Value Destroyed (4882) 4882 Prototype IDs (31) 620 Alien Tech Used (0) 0 Bonus (1089) 1089 TOTAL SCORE: 11386 Bonus ------- High Alert Combat Kills 289 Entered DSFs 500 Aligned with FarCom 300 Cogmind --------- Core Integrity 0/850 Matter 30/300 Energy 100/100 System Corruption 16% Temperature Cool (0) Movement Core (750) Ox14 Location -6/Factory Parts ------- > --- POWER (1) -------- (None) > --- PROPULSION (5) --- (None) > --- UTILITY (6) ------ High-capacity Storage Unit Improved Signal Interpreter Transport Network Coupler > --- WEAPON (3) ------- Enhanced Autogun Mini Grenade Launcher > --- INVENTORY (20) --- Graphene Brace Hardlight Generator Improved Medium Laser Heavy Ion Cannon Heavy Plasma Cannon Rocket Launcher Great Axe Peak State ------------ > --- POWER ------------ Reinforced Deuterium Engine > --- PROPULSION ------- Improved Treads Improved Treads Improved Treads Armored Treads Armored Treads > --- UTILITY ---------- Improved Thermal Generator High-capacity Storage Unit Improved Signal Interpreter Advanced Targeting Computer Improved Light Armor Plating Hardlight Generator > --- WEAPON ----------- Heavy Plasma Cannon Improved Assault Rifle Minigun > --- INVENTORY -------- Fission Core Light Treads Light Treads Light Treads Armored Treads Superbattery Transport Network Coupler Graphene Brace Improved Medium Laser Heavy Ion Cannon Heavy Plasma Cannon Improved Assault Rifle Enhanced Autogun Magnetic Acceleration Cannon Proton Missile Launcher Proton Missile Launcher Rocket Launcher Mini Grenade Launcher Long-range Missile Launcher Great Axe [Rating: 52] Favorites ----------- Power Cooled Ion Engine Engine Cooled Ion Engine Power Core Fission Core Reactor Cold Fusion Reactor Propulsion Light Treads Treads Light Treads Leg Aluminum Leg Wheel Wheel Utility Cooling System Device Cooling System Storage High-capacity Storage Unit Processor Improved Signal Interpreter Protection Improved Light Armor Plating Weapon Improved Medium Laser Energy Gun Improved Medium Laser Energy Cannon Heavy Plasma Cannon Ballistic Gun Light Assault Rifle Ballistic Cannon Magnetic Acceleration Cannon Launcher Mini Grenade Launcher Special Weapon Mining Laser Build | -11 -10 -10 -9 -9 -9 -8 -8 -7 -7 -6 ------- Run | Yrd Mat Min Mat Min Exi Min Mat Fac DSF Fac Slots Evolved 8 | . . . 2 . . . 2 2 . 2 Power . | . . . . . . . . . . . Propulsion 3 | . . . 1 . . . 1 . . 1 Utility 4 | . . . 1 . . . 1 2 . . Weapon 1 | . . . . . . . . . . 1 Parts Attached 238 | 3 25 7 65 13 9 . 47 2 1 66 Power 15 | . 1 . 7 . 1 . 1 . 1 4 Engine 13 | . 1 . 7 . 1 . 1 . 1 2 Core 1 | . . . . . . . . . . 1 Reactor 1 | . . . . . . . . . . 1 Propulsion 43 | 2 5 . 9 3 . . 13 . . 11 Treads 37 | 2 3 . 9 3 . . 9 . . 11 Leg 3 | . . . . . . . 3 . . . Wheel 3 | . 2 . . . . . 1 . . . Hover . | . . . . . . . . . . . Flight . | . . . . . . . . . . . Utility 44 | 1 5 . 5 . 6 . 8 2 . 17 Device 19 | 1 2 . 2 . 1 . 1 1 . 11 Storage 9 | . 2 . 2 . 5 . . . . . Processor 8 | . 1 . 1 . . . 4 . . 2 Hackware . | . . . . . . . . . . . Protection 8 | . . . . . . . 3 1 . 4 Artifact . | . . . . . . . . . . . Weapon 136 | . 14 7 44 10 2 . 25 . . 34 Energy Gun 46 | . 6 1 20 6 1 . 9 . . 3 Energy Cannon 18 | . . . 6 . 1 . 2 . . 9 Ballistic Gun 31 | . 3 2 5 . . . 7 . . 14 Ballistic Cannon 2 | . . . . . . . . . . 2 Launcher 27 | . 2 3 9 4 . . 3 . . 6 Special Weapon 12 | . 3 1 4 . . . 4 . . . Impact Weapon . | . . . . . . . . . . . Slashing Weapon . | . . . . . . . . . . . Piercing Weapon . | . . . . . . . . . . . Special Melee Weapon . | . . . . . . . . . . . Unidentified Prototypes 7 | . . . 4 . 1 . 1 . . 1 Parts Lost 43 | . 2 . 6 2 . . 10 . . 23 Power 3 | . . . 1 . . . . . . 2 Propulsion 24 | . 1 . 3 2 . . 7 . . 11 Utility 5 | . 1 . . . . . 1 . . 3 Weapon 11 | . . . 2 . . . 2 . . 7 Highest Loss Streak 18 | . 1 . 3 2 . . 5 . . 18 To Critical Strikes 1 | . . . . 1 . . . . . . Average Slot Usage (%) 98 | . 98 100 99 100 100 100 98 100 100 97 Engine 9 | . 14 14 10 11 11 11 9 7 7 5 Treads 31 | . 27 28 32 33 33 33 33 30 30 31 Device 8 | . 4 . 11 11 11 11 7 7 7 11 Storage 9 | . 14 14 11 11 11 11 9 7 7 6 Processor 13 | . 8 14 11 11 11 11 18 15 15 16 Protection 1 | . . . . . . . 1 15 15 3 Energy Gun 12 | . 9 11 16 15 22 22 16 . . . Energy Cannon 1 | . . . 3 . . . . . . 4 Ballistic Gun 6 | . 17 10 . . . . 1 15 15 12 Naked Turns . | . . . . . . . . . . . Heaviest Build 89 | 11 28 28 39 36 56 56 62 63 69 89 Greatest Support 117 | 40 46 46 69 66 60 60 89 89 89 117 Greatest Overweight (x) 6 | . 2 . . . . . 6 . . 1 Average Overweight (x) . | . . . . . . . . . . . Largest Inventory Capacity 20 | 8 15 15 15 15 20 20 20 20 20 20 Average Capacity 17 | 8 11 15 15 15 15 20 20 20 20 20 Most Carried 20 | 6 15 15 15 15 16 19 20 19 20 20 Average Carried 16 | 6 11 15 14 14 14 18 19 18 19 19 Final Capacity 20 | 8 15 15 15 15 20 20 20 20 20 20 Final Carried 20 | 6 15 15 15 13 16 19 20 18 20 7 Class Distribution -------------------- 77% | Mutant 9% | Scavenger-Skirmisher 5% | Scavenger-Tank 5% | Tank Dominant Class ---------------- Mutant | -10/Materials Mutant | -10/Mines Mutant | -9/Materials Mutant | -9/Mines Mutant | -9/Exiles Mutant | -8/Mines Mutant | -8/Materials Mutant | -7/Factory Mutant | -7/DSF Scavenger-Skirmisher | -6/Factory Resources | -11 -10 -10 -9 -9 -9 -8 -8 -7 -7 -6 ----------- Run | Yrd Mat Min Mat Min Exi Min Mat Fac DSF Fac Matter Collected 4172 | 236 507 201 1050 133 100 167 521 . 48 1209 Remotely 24 | 10 14 . . . . . . . . . Salvage Created 6049 | 75 680 186 1346 157 . 231 1287 . 65 2022 Parts 318 | 3 45 8 81 10 . 5 77 . 4 85 Haulers Intercepted 13 | . 2 . 4 . . . 4 . . 3 Recyclers Shooed 14 | . 5 . . . . . . . . 9 Parts Field Recycled . | . . . . . . . . . . . Retrieved Matter . | . . . . . . . . . . . Parts Self-Destructed . | . . . . . . . . . . . Prevented . | . . . . . . . . . . . Kills | -11 -10 -10 -9 -9 -9 -8 -8 -7 -7 -6 ------- Run | Yrd Mat Min Mat Min Exi Min Mat Fac DSF Fac Combat Hostiles Destroyed 122 | . 11 6 34 13 . 1 33 . 1 23 Guns 61 | . 11 2 11 8 . 1 16 . 1 11 Cannons 12 | . . . 6 . . . . . . 6 AOE 45 | . . 4 16 5 . . 15 . . 5 Classes Destroyed 19 | 1 4 1 4 1 . 1 . . 1 6 Worker 2 | . . . . . . . . . . 2 Builder 5 | . . . 1 . . . 1 . . 3 Hauler 13 | . 2 . 4 . . . 4 . . 3 Recycler 9 | 1 2 . . . . 2 . . . 4 Mechanic 1 | . . . 1 . . . . . . . Operator 1 | . . . . . . . . . . 1 Watcher 12 | . 3 . 5 . . . 1 . . 3 Swarmer 28 | . 3 . 8 3 . . 14 . . . Grunt 49 | . 8 5 16 3 . . 10 . . 7 Brawler 2 | . . . 2 . . . . . . . Duelist 1 | . . . . . . . . . 1 . Protector 2 | . . . . . . . . . . 2 Sentry 17 | . . . 8 . . . 8 . . 1 Demolisher 2 | . . . . 2 . . . . . . Specialist 2 | . . . . . . . . . . 2 Hunter 5 | . . . . . . 1 1 . . 3 Programmer 7 | . . . . . . . . . . 7 Heavy 1 | . . . . . . . . . . 1 Assembled 6 | . . 1 . 5 . . . . . . Best Kill Streak 14 | 1 3 3 6 4 . 1 14 . 1 5 Combat Bots Only 13 | . 3 3 6 4 . 1 13 . 1 4 Max Kills in Single Turn 4 | 1 1 2 3 3 . 1 4 . 1 3 Gunslinging . | . . . . . . . . . . . Exploded 4 | . . 2 3 3 . . 4 . . 2 Melee . | . . . . . . . . . . . Uniques/NPCs Destroyed . | . . . . . . . . . . . Combat | -11 -10 -10 -9 -9 -9 -8 -8 -7 -7 -6 -------- Run | Yrd Mat Min Mat Min Exi Min Mat Fac DSF Fac Hostile Shots Fired 807 | . 70 12 112 51 . 10 134 . . 418 Missed 225 | . 19 4 33 13 . 4 29 . . 123 Damage Taken 9671 | . 567 214 1343 702 . 86 1642 . . 5117 Core 1526 | . 78 39 267 80 . . 210 . . 852 Absorbed by Shields 320 | . . . . . . . . . . 320 Regen/Repaired (Parts) 437 | . 75 . 190 . . . 135 . . 37 Core Remaining (%) 65 | 100 . 53 . . . 13 61 . 100 . Volleys Fired 520 | 3 73 17 116 28 . 10 101 . 1 171 Largest 3 | 2 2 2 2 2 . 2 2 . 2 3 Hottest 213 | 40 130 100 130 112 . 112 124 . 50 213 Shots Fired 966 | 6 138 27 204 53 . 20 179 . 2 337 Gun 702 | 6 130 19 144 46 . 20 151 . 2 184 Cannon 171 | . . . 30 . . . 5 . . 136 Launcher 49 | . . 3 17 7 . . 5 . . 17 Special 44 | . 8 5 13 . . . 18 . . . Kinetic 347 | 6 93 9 24 . . . 19 . 2 194 Thermal 517 | . 35 5 138 46 . 20 147 . . 126 Explosive 40 | . . 3 17 7 . . 5 . . 8 Electromagnetic 62 | . 10 10 25 . . . 8 . . 9 Robot Hit Streak 27 | 2 27 4 15 9 . 11 25 . 15 20 Robot Miss Streak 4 | 1 4 2 3 2 . 2 2 . . 4 Penetration Max . | . . . . . . . . . . . Secondary Targets 4 | . 2 . . . . . 1 . . 1 Max Gunslinging Chain 1 | . 1 . . . . . 1 . . 1 Shots Hit Robots 613 | 4 95 12 134 33 . 15 128 . 1 191 Core Hits 305 | 2 38 12 65 19 . 4 58 . 1 106 Critical Kills 1 | . . . . . . . . . . 1 Critical Parts Destroyed 2 | . 1 . . . . . . . . 1 Critical Strikes 30 | . 3 . 10 2 . 3 8 . . 4 Burn 25 | . 2 . 10 2 . 3 8 . . . Meltdown 1 | . . . . . . . . . . 1 Destroy 2 | . 1 . . . . . . . . 1 Blast 2 | . . . . . . . . . . 2 Melee Attacks . | . . . . . . . . . . . Impact . | . . . . . . . . . . . Slashing . | . . . . . . . . . . . Piercing . | . . . . . . . . . . . Sneak Attacks . | . . . . . . . . . . . Combat Hostiles . | . . . . . . . . . . . Follow-up Attacks . | . . . . . . . . . . . Damage Inflicted 15193 | 39 993 326 3544 892 . 250 3187 . 20 5942 Guns 7797 | 39 968 111 1580 529 . 250 2064 . 20 2236 Cannons 2100 | . . . 391 . . . 82 . . 1627 Explosions 5296 | . 25 215 1573 363 . . 1041 . . 2079 Melee . | . . . . . . . . . . . Ramming . | . . . . . . . . . . . Kinetic 3527 | 39 503 39 310 . . . 257 . 20 2359 Thermal 6131 | . 381 . 1447 529 . 250 1968 . . 1556 Explosive 4102 | . . 215 1450 363 . . 802 . . 1272 Electromagnetic 1433 | . 109 72 337 . . . 160 . . 755 Impact . | . . . . . . . . . . . Slashing . | . . . . . . . . . . . Piercing . | . . . . . . . . . . . Highest Corruption 16 | . . . . . . . . . . 16 Average Corruption 4 | . . . . . . . . . . 4 Corruption Purged . | . . . . . . . . . . . Corruption Blocked . | . . . . . . . . . . . Effects 52 | . . . . . . . . . . 52 Message Errors 10 | . . . . . . . . . . 10 Matter Fused 8 | . . . . . . . . . . 8 Heat Flow Errors 8 | . . . . . . . . . . 8 Energy Discharges 8 | . . . . . . . . . . 8 Parts Rejected 1 | . . . . . . . . . . 1 Data Loss (minor) 6 | . . . . . . . . . . 6 Data Loss (major) 2 | . . . . . . . . . . 2 Misfires 4 | . . . . . . . . . . 4 Alerts 1 | . . . . . . . . . . 1 Weapon Failures 4 | . . . . . . . . . . 4 Overload Shots . | . . . . . . . . . . . Overflow Damage 400 | . . . 114 5 . . 181 . . 100 Projectiles 72 | . . . . . . . . . . 72 Explosions 328 | . . . 114 5 . . 181 . . 28 Melee . | . . . . . . . . . . . Knockbacks 2 | . . . . . . . . . . 2 Impact . | . . . . . . . . . . . Kinetic 2 | . . . . . . . . . . 2 Secondary . | . . . . . . . . . . . Self-Inflicted Damage 661 | . . 49 361 . . . 163 . . 88 Shots 21 | . . 1 10 . . . 4 . . 6 Rammed . | . . . . . . . . . . . Targets Rammed . | . . . . . . . . . . . Kicked . | . . . . . . . . . . . Crushed . | . . . . . . . . . . . Highest Temperature 406 | . 328 52 263 . . . 141 . . 406 Average Temperature 69 | . 64 18 23 . . . 39 . . 100 Received Heat Transfer 2013 | . 291 24 528 33 . . 531 . . 606 Effects 2 | . 1 . . . . . . . . 1 Shutdowns 1 | . 1 . . . . . . . . . Interference 1 | . . . . . . . . . . 1 Siege Activations . | . . . . . . . . . . . Robots Corrupted . | . . . . . . . . . . . Combat Hostiles . | . . . . . . . . . . . Parts Fried 4 | . 1 . 1 . . . 1 . . 1 Impact Corruptions . | . . . . . . . . . . . Robots Melted 5 | . . . 2 . . . 2 . . 1 Combat Hostiles 4 | . . . 1 . . . 2 . . 1 Parts Melted 33 | . 4 . 12 . . 1 13 . . 3 Heat Transferred 14070 | . 1049 . 4072 1295 . 777 4592 . . 2285 Parts Sabotaged 2 | . . . . . . . . . . 2 Parts Stolen . | . . . . . . . . . . . Parts Stripped . | . . . . . . . . . . . Power Chain Reactions 7 | . 1 . 2 . . . 2 . . 2 Alert | -11 -10 -10 -9 -9 -9 -8 -8 -7 -7 -6 ------- Run | Yrd Mat Min Mat Min Exi Min Mat Fac DSF Fac Peak Influence 699 | 5 163 82 655 467 . 70 699 316 241 347 Initial 311 | . 3 . 31 255 . . . 311 221 126 Average 169 | 2 59 42 418 392 . 23 105 314 239 138 Maximum Alert Level 2 | . . . 2 2 . . 2 1 1 1 Low Security (%) 65 | 100 100 100 4 . . 100 87 . . 62 Level 1 20 | . . . 46 39 . . . 100 100 37 Level 2 14 | . . . 49 60 . . 11 . . . Level 3 . | . . . . . . . . . . . Level 4 . | . . . . . . . . . . . Level 5 . | . . . . . . . . . . . High Security . | . . . . . . . . . . . Max Security . | . . . . . . . . . . . Sterilizations 1 | . . . . . . . . . 1 . Squads Dispatched 22 | . 2 . 3 . . . 7 . . 10 Investigation 5 | . 1 . 1 . . . 1 . . 2 Extermination 5 | . . . . . . . . . . 5 Reinforcement 8 | . 1 . 1 . . . 3 . . 3 Assault 1 | . . . 1 . . . . . . . Garrison 3 | . . . . . . . 3 . . . Intercept . | . . . . . . . . . . . Searches Triggered . | . . . . . . . . . . . Construction Impeded 2 | . . . . . . . 1 . . 1 Haulers Reinforced 1 | . . . . . . . . . . 1 Active Scanning Responses . | . . . . . . . . . . . Cargo Convoy Interrupts 1 | . . . . . . . . . . 1 Stealth | -11 -10 -10 -9 -9 -9 -8 -8 -7 -7 -6 --------- Run | Yrd Mat Min Mat Min Exi Min Mat Fac DSF Fac Distress Signals 8 | . . . 2 2 . . 3 . . 1 Communications Jammed . | . . . . . . . . . . . Distress Signals . | . . . . . . . . . . . Times Spotted 173 | . 20 6 45 15 . 1 41 . 2 43 Peak Tracking Total 12 | . 3 3 7 3 . 1 9 . 3 12 Tactical Retreats 5 | . 2 . 1 2 . . . . . . Traps | -11 -10 -10 -9 -9 -9 -8 -8 -7 -7 -6 ------- Run | Yrd Mat Min Mat Min Exi Min Mat Fac DSF Fac Traps Triggered 3 | . 1 . . . . . 1 . . 1 Indirectly . | . . . . . . . . . . . Trap Hack Attempts . | . . . . . . . . . . . Triggered . | . . . . . . . . . . . Disarmed . | . . . . . . . . . . . Reprogrammed . | . . . . . . . . . . . Reused . | . . . . . . . . . . . Traps Extracted . | . . . . . . . . . . . Installed . | . . . . . . . . . . . Triggered . | . . . . . . . . . . . Most Traps Carried 1 | . . 1 . . . . . . . . Machines | -11 -10 -10 -9 -9 -9 -8 -8 -7 -7 -6 ---------- Run | Yrd Mat Min Mat Min Exi Min Mat Fac DSF Fac Machines Disabled 19 | . 1 1 10 . . . 3 . . 4 Max in Single Turn 2 | . 1 1 2 . . . 1 . . 1 Machines Repaired . | . . . . . . . . . . . Machines Dismantled . | . . . . . . . . . . . Machines Sabotaged . | . . . . . . . . . . . Overloaded Fab Kills . | . . . . . . . . . . . Hacking | -11 -10 -10 -9 -9 -9 -8 -8 -7 -7 -6 --------- Run | Yrd Mat Min Mat Min Exi Min Mat Fac DSF Fac Machines Accessed 45 | . 8 . 12 . 5 . 7 1 . 12 Terminals 25 | . 6 . 7 . . . 5 1 . 6 Fabricators . | . . . . . . . . . . . Repair Stations 7 | . 1 . 2 . . . 2 . . 2 Recycling Units 7 | . 1 . 2 . . . . . . 4 Scanalyzers 1 | . . . 1 . . . . . . . Garrison Access . | . . . . . . . . . . . Total Hacks 149 | . 24 . 46 . 29 . 22 1 . 27 Successful 86 | . 13 . 21 . 29 . 8 1 . 14 Failed 63 | . 11 . 25 . . . 14 . . 13 Catastrophic 7 | . . . 1 . . . 1 . . 5 Database Lockouts . | . . . . . . . . . . . Manual 37 | . 11 . 11 . 1 . 9 . . 5 Terminals 76 | . 19 . 26 . . . 17 1 . 13 Fabricators . | . . . . . . . . . . . Repair Stations 18 | . 2 . 8 . . . 5 . . 3 Recycling Units 25 | . 3 . 11 . . . . . . 11 Scanalyzers 1 | . . . 1 . . . . . . . Garrison Access . | . . . . . . . . . . . Terminal Hacks 53 | . 8 . 6 . 29 . 4 1 . 5 Record 28 | . . . . . 28 . . . . . Robot Analysis 6 | . 2 . 2 . . . 2 . . . Prototype ID Bank 1 | . 1 . . . . . . . . . Open DSF 1 | . . . . . . . . 1 . . Branch Access Points 4 | . 1 . 1 . . . 1 . . 1 Recycling Unit Index 1 | . . . . . . . . . . 1 Alert Level 1 | . . . . . . . 1 . . . Locate Traps 3 | . 1 . 1 . . . . . . 1 Hauler Manifests 3 | . 1 . . . . . . . . 2 Zone Layout 4 | . 2 . 2 . . . . . . . Derelict Proto ID Bank 1 | . . . . . 1 . . . . . Fabricator Hacks . | . . . . . . . . . . . Repair Station Hacks 12 | . 2 . 6 . . . 2 . . 2 Scan Component 6 | . 1 . 3 . . . 1 . . 1 Repair 6 | . 1 . 3 . . . 1 . . 1 Recycling Unit Hacks 16 | . 2 . 8 . . . . . . 6 Recycle Component 2 | . . . 2 . . . . . . . Process 1 | . . . 1 . . . . . . . Report Inventory 8 | . 1 . 2 . . . . . . 5 Retrieve Matter 3 | . 1 . 2 . . . . . . . Retrieve Components 2 | . . . 1 . . . . . . 1 Scanalyzer . | . . . . . . . . . . . Garrison Access Hacks . | . . . . . . . . . . . Unauthorized Hacks 5 | . 1 . 1 . . . 2 . . 1 Terminals 4 | . 1 . 1 . . . 2 . . . Assimilate 1 | . . . . . . . 1 . . . Botnet 3 | . 1 . 1 . . . 1 . . . Fabricators . | . . . . . . . . . . . Repair Stations . | . . . . . . . . . . . Recycling Units 1 | . . . . . . . . . . 1 Tunnel 1 | . . . . . . . . . . 1 Scanalyzers . | . . . . . . . . . . . Garrison Access . | . . . . . . . . . . . Data Cores Recovered 1 | . . . . . . . . . . 1 Used . | . . . . . . . . . . . Hacking Detections 37 | . 8 . 11 . . . 7 1 . 10 Full Trace Events 2 | . . . 2 . . . . . . . Feedback Events . | . . . . . . . . . . . Feedback Blocked . | . . . . . . . . . . . Robot Schematics Acquired . | . . . . . . . . . . . Robots Built . | . . . . . . . . . . . Authchips . | . . . . . . . . . . . Time . | . . . . . . . . . . . Total Robot Build Rating . | . . . . . . . . . . . Part Schematics Acquired . | . . . . . . . . . . . Parts Built . | . . . . . . . . . . . Authchips . | . . . . . . . . . . . Time . | . . . . . . . . . . . Total Part Build Rating . | . . . . . . . . . . . Parts Repaired 6 | . 1 . 3 . . . 1 . . 1 Time 148 | . 13 . 90 . . . 13 . . 32 Parts Recycled 2 | . . . 2 . . . . . . . Recycled Matter 19 | . . . 19 . . . . . . . Retrieved Matter 19 | . . . 19 . . . . . . . Retrieved Components 13 | . . . 3 . . . . . . 10 Parts Scanalyzed . | . . . . . . . . . . . Part Schematics Acquired . | . . . . . . . . . . . Parts Damaged . | . . . . . . . . . . . Bothacking | -11 -10 -10 -9 -9 -9 -8 -8 -7 -7 -6 ------------ Run | Yrd Mat Min Mat Min Exi Min Mat Fac DSF Fac Used RIF Installer . | . . . . . . . . . . . Robots Hacked . | . . . . . . . . . . . Non-combat . | . . . . . . . . . . . Combat . | . . . . . . . . . . . Robot Hacks Applied . | . . . . . . . . . . . Relay Couplers Released . | . . . . . . . . . . . Fabnet Peak Effective % . | . . . . . . . . . . . Robots Rewired . | . . . . . . . . . . . Allies Hacked . | . . . . . . . . . . . Hacks Repelled . | . . . . . . . . . . . Allies | -11 -10 -10 -9 -9 -9 -8 -8 -7 -7 -6 -------- Run | Yrd Mat Min Mat Min Exi Min Mat Fac DSF Fac Total Allies 1 | . . . . . . . 1 . . . Largest Group 1 | . . . . . . . 1 . . . Highest-Rated Group 10 | . . . . . . . 10 . . . Highest-Rated Ally 10 | . . . . . . . 10 . . . Total Orders . | . . . . . . . . . . . Ally Attacks . | . . . . . . . . . . . Total Damage . | . . . . . . . . . . . Kills . | . . . . . . . . . . . Allies Corrupted . | . . . . . . . . . . . Allies Melted . | . . . . . . . . . . . Intel | -11 -10 -10 -9 -9 -9 -8 -8 -7 -7 -6 ------- Run | Yrd Mat Min Mat Min Exi Min Mat Fac DSF Fac Robot Analysis Total 6 | . 2 . 2 . . . 2 . . . Derelict Logs Recovered 1 | . . . . 1 . . . . . . Drone Launches . | . . . . . . . . . . . Drone Recoveries . | . . . . . . . . . . . Exploration | -11 -10 -10 -9 -9 -9 -8 -8 -7 -7 -6 ------------- Run | Yrd Mat Min Mat Min Exi Min Mat Fac DSF Fac Turns Passed 16105 | 126 2060 700 3001 431 1058 1075 4035 18 111 3490 Spaces Moved 7629 | 80 1091 396 1402 206 647 645 1468 11 64 1619 Core . | . . . . . . . . . . . Treads 7500 | 46 1048 396 1402 206 647 645 1416 11 64 1619 Legs 64 | 34 . . . . . . 30 . . . Wheels 65 | . 43 . . . . . 22 . . . Hover . | . . . . . . . . . . . Flight . | . . . . . . . . . . . Fastest Speed 95 | 120 95 160 160 160 160 160 145 160 160 160 Average Speed 161 | 143 157 160 160 160 160 160 165 160 160 161 Slowest Speed 540 | 160 240 160 160 160 160 160 540 160 160 250 Overloaded Moves . | . . . . . . . . . . . Propulsion Burnouts . | . . . . . . . . . . . Robots Hopped . | . . . . . . . . . . . Cave-ins Triggered . | . . . . . . . . . . . Exploration Rate (%) 57 | 6 95 63 87 40 92 91 48 1 82 23 Regions Visited 10 Branch Regions 4 Pre-discovered Areas 2 | . . . . . 1 . . . . 1 Known Exits Taken 4 | . 1 . 1 . . . 1 1 . . Unknown Exits Taken 5 | 1 . 1 . 1 1 1 . . . . Scrap Searched 2 | . . 1 . . . 1 . . . . Spaces Dug 111 | . 8 1 20 . . . 17 . . 65 Terrain Destroyed 436 | . 12 28 120 48 . . 57 . . 171 Melee . | . . . . . . . . . . . Projectile 118 | . 8 1 13 . . . 18 . . 78 AOE 318 | . 4 27 107 48 . . 39 . . 93 Terrain Rammed . | . . . . . . . . . . . Walls Destroyed . | . . . . . . . . . . . Machines Disabled . | . . . . . . . . . . . Actions | -11 -10 -10 -9 -9 -9 -8 -8 -7 -7 -6 --------- Run | Yrd Mat Min Mat Min Exi Min Mat Fac DSF Fac Total 10512 | 85 1302 427 1938 250 670 668 2857 12 76 2227 Wait 1882 | . 67 . 276 3 . 11 1185 . . 340 Move 7619 | 79 1090 395 1401 205 646 644 1467 10 63 1619 Hop . | . . . . . . . . . . . Pick Up 124 | . 26 4 36 1 8 3 27 . 6 13 Fast Attach 35 | 1 3 . 11 . . . 14 . . 6 Attach 40 | . 2 . 8 3 2 . 6 2 . 17 Detach 4 | . . . 2 . 1 . 1 . . . Swap 163 | 2 20 7 46 10 7 . 27 . 1 43 Drop 125 | . 21 4 42 . 6 . 29 . 5 18 Fire 520 | 3 73 17 116 28 . 10 101 . 1 171 Melee . | . . . . . . . . . . . Ram . | . . . . . . . . . . . Kick . | . . . . . . . . . . . Crush . | . . . . . . . . . . . Escape Stasis . | . . . . . . . . . . . Rewire . | . . . . . . . . . . . Trap . | . . . . . . . . . . . Miscellaneous . | . . . . . . . . . . . Route ------- -11/Scrapyard -10/Materials (discovered 5 exits: *Mat x3 / *Min / [Sub]) -10/Mines -9/Materials (discovered 4 exits: *Mat x2 / *Min x2) -9/Mines (discovered 3 exits: *Mat / *Exi / [*Zio]) -9/Exiles (discovered 2 exits: [*Min x2]) -8/Mines -8/Materials -7/Factory -7/DSF -6/Factory (discovered 3 exits: [*Fac] / Low x2) History --------- Turn | Location | Event 1 | -11/Scrapyard | Discovered new exit (range 1) 127 | -11/Scrapyard | Entered Materials 140 | -10/Materials | Identified exit to Mines 318 | -10/Materials | Build established: Mutant 678 | -10/Materials | Repaired Lgt. Treads 931 | -10/Materials | Discovered new exit (range 10) 931 | -10/Materials | Discovered new exit (range 8) 1352 | -10/Materials | Discovered new exit (range 3) 1548 | -10/Materials | Discovered new exit (range 14) 2187 | -10/Materials | Entered Mines 2375 | -10/Mines | Received a Rocket Launcher from a helpful Derelict 2497 | -10/Mines | Found a hidden stash of uninstalled traps 2570 | -10/Mines | Discovered new exit (range 12) 2765 | -10/Mines | Excavation squad dispatched 2765 | -10/Mines | A large section of the Mines collapsed 2887 | -10/Mines | Entered Materials 2887 | -9/Materials | Evolved 2 slots: Propulsion x1, Utility x1 3189 | -9/Materials | Lost 3 parts (2n1w) 3356 | -9/Materials | Core integrity fell below 50% 3812 | -9/Materials | Discovered new exit (range 16) 3921 | -9/Materials | Discovered new exit (range 8) 4146 | -9/Materials | Repaired Lgt. Treads 4446 | -9/Materials | Discovered new exit (range 12) 4732 | -9/Materials | Identified exit to Mines 5319 | -9/Materials | Repaired Imp. Treads 5353 | -9/Materials | Repaired Imp. Treads 5644 | -9/Materials | Discovered new exit (range 11) 5687 | -9/Materials | First assault squad dispatched 5888 | -9/Materials | Entered Mines 5929 | -9/Mines | A Derelict revealed a hidden shortcut to a safe place 5951 | -9/Mines | Deemed a non-threat by the Exiles lab entrance 5951 | -9/Mines | Discovered new exit (range 5) 6111 | -9/Mines | Discovered new exit (range 15) 6112 | -9/Mines | Learned Materials stockpile data 6123 | -9/Mines | Assembled infested the area 6173 | -9/Mines | Core integrity fell below 20% 6319 | -9/Mines | Entered Exiles 6353 | -9/Exiles | Discovered new exit (range 15) 6369 | -9/Exiles | Met 8R-AWN 6398 | -9/Exiles | Met EX-HEX 6518 | -9/Exiles | Met EX-DEC 6555 | -9/Exiles | Visited The Gauntlet 6759 | -9/Exiles | Learned location of Zion (-7) 6871 | -9/Exiles | Met EX-BIN 6903 | -9/Exiles | Aligned with FarCom system 6905 | -9/Exiles | Given EX-Vault access code 6954 | -9/Exiles | Opened EX-Vault 6966 | -9/Exiles | Found Prototype Storage 6970 | -9/Exiles | Identified Superbattery 7145 | -9/Exiles | Warned to stay clear of 0b10 Research branches 7340 | -9/Exiles | Discovered new exit (range 12) 7377 | -9/Exiles | Left Exiles lab with Superbattery 7377 | -9/Exiles | Entered Mines 7470 | -8/Mines | Discovered new exit (range 10) 8452 | -8/Mines | Entered Materials 8452 | -8/Materials | Evolved 2 slots: Propulsion x1, Utility x1 11803 | -8/Materials | Repaired Lgt. Treads 11809 | -8/Materials | Discovered new exit (range 8) 12000 | -8/Materials | Garrison activated, responded to threat 12027 | -8/Materials | Destroyed 13 combat bots 12027 | -8/Materials | Lost 5 parts (3n1u1w) 12484 | -8/Materials | Identified exit to Factory 12487 | -8/Materials | Entered Factory 12487 | -7/Factory | Evolved 2 slots: Utility x2 12493 | -7/Factory | Identified exit to DSF 12505 | -7/Factory | Entered DSF 12505 | -7/DSF | Encountered a pitched battle between 0b10 and Warlord forces 12545 | -7/DSF | Sterilization system engaged 12551 | -7/DSF | Lost 8 allies 12565 | -7/DSF | Ambient heat levels rising (+10) 12580 | -7/DSF | Ambient heat levels rising (+10) 12592 | -7/DSF | Discovered new exit (range 14) 12595 | -7/DSF | Ambient heat levels rising (+10) 12610 | -7/DSF | Ambient heat levels rising (+10) 12615 | -7/DSF | Identified exit to Factory 12616 | -7/DSF | Entered Factory 12616 | -6/Factory | Evolved 2 slots: Propulsion x1, Weapon x1 13050 | -6/Factory | Build established: Tank 13868 | -6/Factory | Build established: Scavenger-Skirmisher 14138 | -6/Factory | Repaired Cooling System 14303 | -6/Factory | Identified exit to Lower Caves 14747 | -6/Factory | Lost 3 parts (2n1u) 15261 | -6/Factory | Build established: Scavenger-Tank 15958 | -6/Factory | Build established: Scavenger-Skirmisher 15998 | -6/Factory | Cargo convoy interrupted 16021 | -6/Factory | System corruption reached 10% 16045 | -6/Factory | Core integrity fell below 50% 16086 | -6/Factory | Core integrity fell below 20% 16104 | -6/Factory | Discovered new exit (range 7) 16106 | -6/Factory | Destroyed self with Mini Grenade Launcher Last Messages --------------- 16099_ K-01 Serf collects debris. 16100_ Penetrated by Slug. 16100_ Imp. Assault Rifle destroyed. 16100_ R-10 Processor collects Superbattery. 16100_ U-05 Engineer lays Concrete. 16102_ W-25 Informer destroyed. 16103_ U-05 Engineer builds a Wall. 16103_ Penetrated by Slug. 16103_ Adv. Targeting Computer destroyed. 16103_ Penetrated by Slug. 16103_ U-05 Engineer lays Concrete. 16104_ Destroyed Hpw. Tractor Beam. 16104_ EXIT=FOUND 16105_ The unstable cave ceiling collapses. 16105_ U-05 Engineer lays Concrete. 16106_ Penetrated by Slug. 16106_ U-05 Engineer destroyed. 16106_ Penetrated by Slug. 16106_ H-66 Slayer destroyed. 16106_ R-10 Processor destroyed. Map ----- +----------------------------------------------------+ | ??????#^ # """ """ ###??????# % """ """ #?? | | ??????# # """ """ ########## #?? | | ??????# # # " """ """ ##? | | ??????# # """ """ # # """ """ ##? | | ####### !*|%# """ """ # # """ """ ##? | | %%!%%#| """ """ # ] # % ##? | | !![!/! # ####+##########? | | ==]############## # ! ## ##### | | [%!#* # = # #####T # | | %[[#! # # | | ####### =%= # """ """" # + T | | ## # """ """" # # | | """ # # """" """" # # ######## | | "R"" # # """" """" # # #??????? | | " "" # %/ # ###A ###??????? | | # %# """" # #?# ########## | | ## # """" # #?# # | | # # """ # #?# # | | "" ## #% ! """" # ### # | | "" ## # ### #% | | "" #### # ##/################### #% | | "" !#??# ## # # ?????##### ### # + % | | ##?### ?#### # ???? #### # %% | | #####"##??# ?# *%| ! ### != #### # | | ########### ## ="! =% =%! # % | | "u%[%! @ *%! # | | ############## p k%! w h # ! | | #???????????##! ## ####+########### | | #????????????# ; ##?? ???????????? | | #?????????? # ###????? ?????????? | | #?????????? ?? ??????? #? ??????????? | | #????????????? ???????? < #??? ??????????? | | #???????????? ???????? #????? ??????##### | | #??????????? ? ###???????? #?????????????# | | #??????????#?##???????????# ###?????????????#" | | #?????????????????????????? #???????????????#"" | | #############??????????????? #???????????????#"" | | #??????????????? #???????????????#"" | | ] #????????????????#???????????????#"" | | #????????????????????????????????#"T | | #????????????????????????????????#"" | | """ """ """ #????????????????????????????????#"" | | """ """ """ #??????????????g?????????????????#"" | | """ """ """ #???????????????A????????????????#"" | | #A???????????????????????????????#" | | ######+######????????????????????????????????# | | ????# #????????????????????????????????????##### | | ???## #????????????????????????????????????????? | | ???+ #????????????????????????????????????????? | | ???## #????????????????????????????????????????? | +----------------------------------------------------+ Best States ------------- Heat Dissipation 59 Energy Generation 18 Energy Capacity 310 Matter Stores 300 Matter Capacity 300 Sight Range 16 Terrain Scan Density 10 Power Amplification 20 Armor Coverage 300 Evasion (%) 55 Targeting Accuracy 8 Recoil Reduction 5 Item Schematics ----------------- None Robot Schematics ------------------ None Fabricated ------------ Nothing Alien Tech Used ----------------- None Achievements -------------- None Challenges ------------ None Game ------ Seed MultinovaLatentArmor Manual? 0 Play Time 03:37:33 Cumulative 78.3 hours Start 2024.03.23 @ 02:43:10 End 2024.03.23 @ 20:45:59 Sessions 22 Manual Loads 0 Difficulty Rogue Special Mode None Game No. 25 Rogue 25 Adventurer 0 Explorer 0 Win Type - Total 1 Types 1/0/0/0/0/0/0/0/0 Lore% 35 Gallery% 49 Achievement% 35 Wizard Run 0 Options --------- Layout 2 ASCII 0 Keyboard 1 Movement Numpad Keybinds 1 Fullscreen 2 Font 32/Tamsyn Map View 50x44 Zoom Use 0% Tactical HUD 1 Map Filters NONE Filters NONE Steam 1 RUN: 9feec3bf-164d-4463-9847-d7bb6a03ac07